[Event "2026 European Womens Championship"]
[Site "Batumi, GE"]
[Date "2026.06.04"]
[Round "10"]
[White "Charkhalashvili, Inga"]
[Black "Ivekovic, Tihana"]
[Result "1/2-1/2"]
[Board "35"]
[TimeControl "5400+30"]
[WhiteFideId "13601431"]
[BlackFideId "14517825"]
[WhiteElo "2235"]
[BlackElo "2119"]
[WhiteTitle "WGM"]
[BlackTitle "WFM"]
[WhiteClock "0:22:24"]
[BlackClock "0:14:31"]
[Variant "Standard"]

1. d4 {[%clk 1:30:57]}  Nf6 {[%clk 1:30:55]} 2. c4 {[%clk 1:31:20]}  e6 {[%clk 1:31:20]} 3. Nf3 {[%clk 1:31:45]}  d5 {[%clk 1:31:45]}
4. Nc3 {[%clk 1:31:55]}  c5 {[%clk 1:32:07]} 5. cxd5 {[%clk 1:31:53]}  cxd4 {[%clk 1:32:30]} 6. Qa4+ {[%clk 1:31:24]}  Bd7 {[%clk 1:32:33]}
7. Qxd4 {[%clk 1:31:30]}  exd5 {[%clk 1:32:40]} 8. Bg5 {[%clk 1:23:20]}  Nc6 {[%clk 1:32:32]} 9. Qd1 {[%clk 1:14:56]}  Bb4 {[%clk 1:14:24]}
10. e3 {[%clk 1:13:22]}  h6 {[%clk 1:08:19]} 11. Bxf6 {[%clk 1:13:01]}  Qxf6 {[%clk 1:08:43]} 12. Rc1 {[%clk 1:13:27]}  O-O {[%clk 1:09:02]}
13. Be2 {[%clk 1:12:47]}  Rad8 {[%clk 1:06:00]} 14. O-O {[%clk 1:12:27]}  Be6 {[%clk 1:06:21]} 15. Qa4 {[%clk 1:08:10]}  Bxc3 {[%clk 1:04:45]}
16. bxc3 {[%clk 1:08:14]}  Rc8 {[%clk 1:04:33]} 17. Rfd1 {[%clk 1:05:54]}  b6 {[%clk 0:55:58]} 18. Ba6 {[%clk 0:51:44]}  Rc7 {[%clk 0:54:25]}
19. Nd4 {[%clk 0:50:13]}  Ne5 {[%clk 0:49:04]} 20. Qc2 {[%clk 0:45:29]}  Nd7 {[%clk 0:42:49]} 21. Be2 {[%clk 0:41:40]}  Nc5 {[%clk 0:37:27]}
22. Bf3 {[%clk 0:34:04]}  Ne4 {[%clk 0:32:00]} 23. Bxe4 {[%clk 0:26:39]}  dxe4 {[%clk 0:32:07]} 24. Nb5 {[%clk 0:26:15]}  Rc5 {[%clk 0:29:12]}
25. Nd6 {[%clk 0:25:55]}  Bd5 {[%clk 0:14:15]} 26. Nxe4 {[%clk 0:25:31]}  Bxe4 {[%clk 0:14:20]} 27. Qxe4 {[%clk 0:25:56]}  Rxc3 {[%clk 0:14:44]}
28. Rxc3 {[%clk 0:25:56]}  Qxc3 {[%clk 0:15:09]} 29. h3 {[%clk 0:25:35]}  Qc7 {[%clk 0:15:18]} 30. Qd5 {[%clk 0:25:07]}  Rc8 {[%clk 0:15:21]}
31. Rd4 {[%clk 0:23:03]}  Qc1+ {[%clk 0:14:31]} 32. Kh2 {[%clk 0:22:24]} 1/2-1/2

[Event "2026 European Womens Championship"]
[Site "Batumi, GE"]
[Date "2026.06.04"]
[Round "10"]
[White "Rapport, Jovana"]
[Black "Ivanytska, Liudmyla"]
[Result "1-0"]
[Board "36"]
[TimeControl "5400+30"]
[WhiteFideId "937266"]
[BlackFideId "14176211"]
[WhiteElo "2235"]
[BlackElo "2112"]
[WhiteTitle "WGM"]
[WhiteClock "0:38:00"]
[BlackClock "0:23:21"]
[Variant "Standard"]

1. e4 {[%clk 1:30:44]}  c5 {[%clk 1:30:57]} 2. Nf3 {[%clk 1:31:06]}  e6 {[%clk 1:31:24]} 3. d3 {[%clk 1:30:18]}  d5 {[%clk 1:31:21]}
4. Qe2 {[%clk 1:30:33]}  Nf6 {[%clk 1:30:46]} 5. g3 {[%clk 1:30:16]}  Be7 {[%clk 1:31:01]} 6. a4 {[%clk 1:30:40]}  c4 {[%clk 1:29:24]}
7. e5 {[%clk 1:24:55]}  cxd3 {[%clk 1:29:49]} 8. cxd3 {[%clk 1:25:04]}  Nfd7 {[%clk 1:29:51]} 9. Bg2 {[%clk 1:25:31]}  Nc6 {[%clk 1:29:03]}
10. O-O {[%clk 1:25:26]}  Nc5 {[%clk 1:28:05]} 11. Nc3 {[%clk 1:17:59]}  Nb3 {[%clk 1:24:14]} 12. Rb1 {[%clk 1:18:20]}  f6 {[%clk 1:21:24]}
13. Bf4 {[%clk 1:15:51]}  f5 {[%clk 1:13:20]} 14. Qd1 {[%clk 1:13:40]}  Nba5 {[%clk 1:09:58]} 15. Na2 {[%clk 1:06:49]}  Nb4 {[%clk 1:09:07]}
16. Nxb4 {[%clk 1:06:25]}  Bxb4 {[%clk 1:09:36]} 17. Nd4 {[%clk 0:58:34]}  Nc6 {[%clk 1:03:17]} 18. Nc2 {[%clk 0:55:50]}  a5 {[%clk 1:02:46]}
19. Nxb4 {[%clk 0:53:52]}  Nxb4 {[%clk 1:03:07]} 20. Qh5+ {[%clk 0:53:51]}  g6 {[%clk 1:03:19]} 21. Qh6 {[%clk 0:52:27]}  Kf7 {[%clk 0:59:06]}
22. Bg5 {[%clk 0:50:03]}  Qf8 {[%clk 0:59:34]} 23. Qh4 {[%clk 0:48:36]}  h6 {[%clk 0:59:52]} 24. Bf6 {[%clk 0:48:56]}  Rh7 {[%clk 1:00:21]}
25. g4 {[%clk 0:48:40]}  Bd7 {[%clk 0:59:57]} 26. gxf5 {[%clk 0:42:38]}  exf5 {[%clk 1:00:06]} 27. Qd4 {[%clk 0:43:02]}  Ke6 {[%clk 0:58:56]}
28. b3 {[%clk 0:40:36]}  Bc6 {[%clk 0:57:34]} 29. Rbc1 {[%clk 0:41:00]}  Rd7 {[%clk 0:56:59]} 30. h4 {[%clk 0:40:20]}  Na6 {[%clk 0:52:00]}
31. Qf4 {[%clk 0:40:48]}  Nc7 {[%clk 0:39:55]} 32. Rfe1 {[%clk 0:39:49]}  Ne8 {[%clk 0:26:10]} 33. Bh3 {[%clk 0:40:10]}  Nxf6 {[%clk 0:24:07]}
34. exf6+ {[%clk 0:40:35]}  Kxf6 {[%clk 0:24:00]} 35. Rxc6+ {[%clk 0:39:18]}  Kg7 {[%clk 0:23:21]} 36. Rce6 {[%clk 0:38:00]} 1-0

[Event "2026 European Womens Championship"]
[Site "Batumi, GE"]
[Date "2026.06.04"]
[Round "10"]
[White "Orian, Noga"]
[Black "Poliakova, Varvara"]
[Result "1/2-1/2"]
[Board "37"]
[TimeControl "5400+30"]
[WhiteFideId "2836475"]
[BlackFideId "13518313"]
[WhiteElo "2231"]
[BlackElo "2108"]
[WhiteTitle "WIM"]
[BlackTitle "WFM"]
[WhiteClock "0:37:21"]
[BlackClock "0:13:50"]
[Variant "Standard"]

1. d4 {[%clk 1:30:57]}  d5 {[%clk 1:30:08]} 2. Nf3 {[%clk 1:31:12]}  Nf6 {[%clk 1:29:35]} 3. g3 {[%clk 1:31:25]}  b5 {[%clk 1:28:36]}
4. a4 {[%clk 1:28:53]}  b4 {[%clk 1:28:32]} 5. c4 {[%clk 1:28:03]}  bxc3 {[%clk 1:28:10]} 6. Nxc3 {[%clk 1:28:26]}  e6 {[%clk 1:26:44]}
7. Bg2 {[%clk 1:28:44]}  a5 {[%clk 1:22:22]} 8. O-O {[%clk 1:28:02]}  Be7 {[%clk 1:21:03]} 9. Bf4 {[%clk 1:28:01]}  O-O {[%clk 1:18:44]}
10. Qc2 {[%clk 1:25:08]}  c6 {[%clk 1:14:30]} 11. Rfc1 {[%clk 1:22:30]}  Na6 {[%clk 1:12:33]} 12. Ne5 {[%clk 1:21:18]}  Nb4 {[%clk 1:09:44]}
13. Qd1 {[%clk 1:14:48]}  Nd7 {[%clk 1:06:15]} 14. Na2 {[%clk 0:56:08]}  Nxe5 {[%clk 1:03:55]} 15. Nxb4 {[%clk 0:55:43]}  Bxb4 {[%clk 1:00:06]}
16. Bxe5 {[%clk 0:56:05]}  Qb6 {[%clk 0:56:33]} 17. h4 {[%clk 0:50:18]}  Bb7 {[%clk 0:47:52]} 18. e4 {[%clk 0:45:05]}  f6 {[%clk 0:39:50]}
19. Bf4 {[%clk 0:44:49]}  e5 {[%clk 0:36:59]} 20. Be3 {[%clk 0:43:43]}  exd4 {[%clk 0:37:17]} 21. Bxd4 {[%clk 0:40:42]}  c5 {[%clk 0:36:42]}
22. Bc3 {[%clk 0:41:08]}  dxe4 {[%clk 0:32:12]} 23. Qc2 {[%clk 0:39:46]}  Rfe8 {[%clk 0:30:47]} 24. Bxb4 {[%clk 0:37:00]}  cxb4 {[%clk 0:30:11]}
25. Qc7 {[%clk 0:37:25]}  Qxc7 {[%clk 0:29:06]} 26. Rxc7 {[%clk 0:37:53]}  Ba6 {[%clk 0:24:05]} 27. Rd1 {[%clk 0:36:16]}  Bd3 {[%clk 0:13:07]}
28. Rxd3 {[%clk 0:36:23]}  exd3 {[%clk 0:13:36]} 29. Bxa8 {[%clk 0:36:45]}  Rxa8 {[%clk 0:14:03]} 30. Rd7 {[%clk 0:37:09]}  Rc8 {[%clk 0:14:04]}
31. Rxd3 {[%clk 0:37:29]}  Rc2 {[%clk 0:14:30]} 32. Rd5 {[%clk 0:36:56]}  Rxb2 {[%clk 0:14:52]} 33. Rxa5 {[%clk 0:37:22]}  Ra2 {[%clk 0:14:07]}
34. Ra7 {[%clk 0:37:21]}  h5 {[%clk 0:13:50]} 1/2-1/2

[Event "2026 European Womens Championship"]
[Site "Batumi, GE"]
[Date "2026.06.04"]
[Round "10"]
[White "Venskaya, Nika"]
[Black "Kubicka, Anna"]
[Result "1/2-1/2"]
[Board "38"]
[TimeControl "5400+30"]
[WhiteFideId "13523503"]
[BlackFideId "1152254"]
[WhiteElo "1937"]
[BlackElo "2226"]
[WhiteTitle "WCM"]
[BlackTitle "WIM"]
[WhiteClock "0:11:09"]
[BlackClock "0:00:51"]
[Variant "Standard"]

1. d4 {[%clk 1:30:59]}  Nf6 {[%clk 1:30:48]} 2. c4 {[%clk 1:31:24]}  g6 {[%clk 1:31:01]} 3. Nc3 {[%clk 1:31:22]}  Bg7 {[%clk 1:31:25]}
4. e4 {[%clk 1:31:48]}  O-O {[%clk 1:31:43]} 5. Be2 {[%clk 1:28:59]}  d6 {[%clk 1:31:51]} 6. Be3 {[%clk 1:29:25]}  Na6 {[%clk 1:25:36]}
7. g4 {[%clk 1:16:46]}  c5 {[%clk 1:21:57]} 8. d5 {[%clk 1:05:22]}  Qb6 {[%clk 1:09:20]} 9. g5 {[%clk 1:01:17]}  Ng4 {[%clk 1:02:51]}
10. Bd2 {[%clk 0:56:22]}  f5 {[%clk 0:52:43]} 11. exf5 {[%clk 0:48:27]}  gxf5 {[%clk 0:18:37]} 12. h3 {[%clk 0:36:45]}  Ne5 {[%clk 0:18:59]}
13. f4 {[%clk 0:34:32]}  Ng6 {[%clk 0:18:38]} 14. Nf3 {[%clk 0:33:14]}  e5 {[%clk 0:13:24]} 15. dxe6 {[%clk 0:33:12]}  Bxe6 {[%clk 0:13:34]}
16. O-O {[%clk 0:32:53]}  Qxb2 {[%clk 0:06:08]} 17. Rb1 {[%clk 0:31:46]}  Qa3 {[%clk 0:05:53]} 18. Rb3 {[%clk 0:26:28]}  Qa5 {[%clk 0:06:15]}
19. h4 {[%clk 0:26:56]}  Rae8 {[%clk 0:05:58]} 20. h5 {[%clk 0:14:33]}  Nxf4 {[%clk 0:06:22]} 21. Bxf4 {[%clk 0:14:33]}  Bxc3 {[%clk 0:06:49]}
22. Qxd6 {[%clk 0:13:48]}  Rf7 {[%clk 0:04:14]} 23. Qd3 {[%clk 0:10:24]}  Bg7 {[%clk 0:04:23]} 24. Ne5 {[%clk 0:10:35]}  Nb4 {[%clk 0:03:54]}
25. Qg3 {[%clk 0:09:08]}  Rfe7 {[%clk 0:03:08]} 26. h6 {[%clk 0:06:53]}  Bxe5 {[%clk 0:03:32]} 27. Bxe5 {[%clk 0:07:07]}  Bf7 {[%clk 0:03:42]}
28. Rxf5 {[%clk 0:05:56]}  Bg6 {[%clk 0:03:58]} 29. Rbf3 {[%clk 0:05:05]}  Qxa2 {[%clk 0:03:27]} 30. Bf1 {[%clk 0:03:42]}  Qd2 {[%clk 0:01:47]}
31. Rf6 {[%clk 0:03:40]}  Nc6 {[%clk 0:00:59]} 32. Bc3 {[%clk 0:03:18]}  Qd7 {[%clk 0:00:47]} 33. Rd6 {[%clk 0:01:59]}  Qc7 {[%clk 0:00:44]}
34. Rff6 {[%clk 0:02:29]}  Nd4 {[%clk 0:00:45]} 35. Qf2 {[%clk 0:00:57]}  Rf7 {[%clk 0:00:39]} 36. Bxd4 {[%clk 0:00:47]}  cxd4 {[%clk 0:00:59]}
37. Qxd4 {[%clk 0:00:35]}  Rxf6 {[%clk 0:00:53]} 38. Qxf6 {[%clk 0:00:44]}  Qe7 {[%clk 0:00:37]} 39. Qxe7 {[%clk 0:00:32]}  Rxe7 {[%clk 0:01:05]}
40. Bg2 {[%clk 0:00:35]}  Re5 {[%clk 0:00:37]} 41. Rd8+ {[%clk 0:27:14]}  Kf7 {[%clk 0:26:13]} 42. Rd7+ {[%clk 0:25:26]}  Ke8 {[%clk 0:22:30]}
43. Rxb7 {[%clk 0:24:17]}  Rxg5 {[%clk 0:21:54]} 44. Rxa7 {[%clk 0:24:34]}  Be4 {[%clk 0:20:20]} 45. Rg7 {[%clk 0:22:07]}  Bg6 {[%clk 0:17:39]}
46. Kf2 {[%clk 0:18:15]}  Rh5 {[%clk 0:17:00]} 47. Ra7 {[%clk 0:18:12]}  Bf7 {[%clk 0:14:15]} 48. Rc7 {[%clk 0:15:28]}  Rxh6 {[%clk 0:13:13]}
49. c5 {[%clk 0:15:49]}  Rf6+ {[%clk 0:13:03]} 50. Ke3 {[%clk 0:15:42]}  Kd8 {[%clk 0:06:47]} 51. Ra7 {[%clk 0:15:53]}  Bg6 {[%clk 0:05:30]}
52. c6 {[%clk 0:15:14]}  Rf7 {[%clk 0:05:50]} 53. Ra8+ {[%clk 0:14:31]}  Kc7 {[%clk 0:06:17]} 54. Kd4 {[%clk 0:13:43]}  Kb6 {[%clk 0:03:58]}
55. Bd5 {[%clk 0:12:40]}  Re7 {[%clk 0:01:03]} 56. Rb8+ {[%clk 0:11:17]}  Kc7 {[%clk 0:00:58]} 57. Rf8 {[%clk 0:11:42]}  Kb6 {[%clk 0:00:40]}
58. Rb8+ {[%clk 0:10:44]}  Kc7 {[%clk 0:01:06]} 59. Rb2 {[%clk 0:10:56]}  Kd6 {[%clk 0:01:15]} 60. Rf2 {[%clk 0:11:09]}  Be8 {[%clk 0:00:51]} 1/2-1/2

[Event "2026 European Womens Championship"]
[Site "Batumi, GE"]
[Date "2026.06.04"]
[Round "10"]
[White "Calzetta Ruiz, Monica"]
[Black "Maltsevskaya, Aleksandra"]
[Result "0-1"]
[Board "40"]
[TimeControl "5400+30"]
[WhiteFideId "2204185"]
[BlackFideId "24174041"]
[WhiteElo "2199"]
[BlackElo "2390"]
[WhiteTitle "WGM"]
[BlackTitle "IM"]
[WhiteClock "0:00:45"]
[BlackClock "0:07:09"]
[Variant "Standard"]

1. e4 {[%clk 1:30:57]}  e6 {[%clk 1:30:55]} 2. d4 {[%clk 1:31:12]}  d5 {[%clk 1:31:18]} 3. e5 {[%clk 1:29:09]}  c5 {[%clk 1:31:41]}
4. c3 {[%clk 1:29:35]}  Qa5 {[%clk 1:31:30]} 5. Nd2 {[%clk 1:18:29]}  cxd4 {[%clk 1:16:31]} 6. Nb3 {[%clk 1:13:00]}  Qc7 {[%clk 1:16:53]}
7. cxd4 {[%clk 1:13:25]}  a5 {[%clk 1:17:17]} 8. Bd2 {[%clk 1:10:39]}  a4 {[%clk 1:15:00]} 9. Rc1 {[%clk 1:10:56]}  Nc6 {[%clk 1:15:23]}
10. Nc5 {[%clk 1:02:53]}  Nxd4 {[%clk 1:06:32]} 11. Nxa4 {[%clk 1:00:07]}  Qxe5+ {[%clk 1:06:53]} 12. Ne2 {[%clk 1:00:32]}  Nc6 {[%clk 0:50:02]}
13. Nb6 {[%clk 0:59:49]}  Rb8 {[%clk 0:50:24]} 14. Qb3 {[%clk 0:55:47]}  Qc7 {[%clk 0:30:55]} 15. Nd4 {[%clk 0:29:02]}  Bd6 {[%clk 0:24:59]}
16. Nxc6 {[%clk 0:25:50]}  bxc6 {[%clk 0:25:22]} 17. Rxc6 {[%clk 0:26:15]}  Qxc6 {[%clk 0:25:47]} 18. Bb5 {[%clk 0:26:40]}  Rxb6 {[%clk 0:26:11]}
19. Bxc6+ {[%clk 0:26:14]}  Rxc6 {[%clk 0:26:35]} 20. O-O {[%clk 0:18:04]}  Nf6 {[%clk 0:24:22]} 21. Qa4 {[%clk 0:17:32]}  Bd7 {[%clk 0:24:29]}
22. b4 {[%clk 0:13:57]}  Ne4 {[%clk 0:23:30]} 23. Be3 {[%clk 0:13:41]}  Ke7 {[%clk 0:23:01]} 24. b5 {[%clk 0:12:30]}  Rc4 {[%clk 0:21:25]}
25. Qa7 {[%clk 0:12:54]}  Nc3 {[%clk 0:21:36]} 26. Bd2 {[%clk 0:01:56]}  Bc5 {[%clk 0:21:56]} 27. b6 {[%clk 0:01:27]}  Nb5 {[%clk 0:15:33]}
28. Qa6 {[%clk 0:00:52]}  Rb8 {[%clk 0:15:41]} 29. Ba5 {[%clk 0:00:32]}  Ra4 {[%clk 0:15:12]} 30. b7 {[%clk 0:00:55]}  Na3 {[%clk 0:06:51]}
31. Rc1 {[%clk 0:00:59]}  Nc4 {[%clk 0:06:57]} 32. Qa8 {[%clk 0:00:45]}  Bd6 {[%clk 0:07:09]} 0-1

[Event "2026 European Womens Championship"]
[Site "Batumi, GE"]
[Date "2026.06.04"]
[Round "10"]
[White "Mgeladze, Kesaria"]
[Black "Sivanandan, Bodhana"]
[Result "1-0"]
[Board "41"]
[TimeControl "5400+30"]
[WhiteFideId "13621130"]
[BlackFideId "497592"]
[WhiteElo "2147"]
[BlackElo "2374"]
[WhiteTitle "WIM"]
[BlackTitle "FM"]
[WhiteClock "0:27:31"]
[BlackClock "0:20:55"]
[Variant "Standard"]

1. e4 {[%clk 1:30:56]}  c6 {[%clk 1:27:51]} 2. d4 {[%clk 1:31:19]}  d5 {[%clk 1:27:59]} 3. e5 {[%clk 1:31:44]}  Bf5 {[%clk 1:27:59]}
4. g4 {[%clk 1:32:01]}  Be4 {[%clk 1:27:58]} 5. f3 {[%clk 1:32:23]}  Bg6 {[%clk 1:27:55]} 6. e6 {[%clk 1:32:28]}  fxe6 {[%clk 1:27:58]}
7. h4 {[%clk 1:32:32]}  h5 {[%clk 1:27:36]} 8. Bd3 {[%clk 1:26:48]}  Bxd3 {[%clk 1:26:15]} 9. Qxd3 {[%clk 1:27:12]}  c5 {[%clk 1:20:13]}
10. Ne2 {[%clk 1:13:29]}  Qd6 {[%clk 1:09:12]} 11. dxc5 {[%clk 1:06:36]}  Qa6 {[%clk 0:57:18]} 12. Qg6+ {[%clk 0:53:00]}  Kd7 {[%clk 0:56:58]}
13. Nd4 {[%clk 0:51:54]}  hxg4 {[%clk 0:44:52]} 14. c6+ {[%clk 0:42:59]}  Nxc6 {[%clk 0:41:11]} 15. Qxe6+ {[%clk 0:42:43]}  Ke8 {[%clk 0:40:01]}
16. Qg6+ {[%clk 0:41:31]}  Kd7 {[%clk 0:39:22]} 17. Qxg4+ {[%clk 0:39:43]}  Ke8 {[%clk 0:38:10]} 18. Qg6+ {[%clk 0:40:06]}  Kd7 {[%clk 0:38:20]}
19. Qf5+ {[%clk 0:39:47]}  e6 {[%clk 0:30:07]} 20. Qxe6+ {[%clk 0:34:44]}  Kd8 {[%clk 0:30:01]} 21. Bg5+ {[%clk 0:24:21]}  Be7 {[%clk 0:24:54]}
22. Qxd5+ {[%clk 0:23:19]}  Ke8 {[%clk 0:24:10]} 23. Ne6 {[%clk 0:23:09]}  Qa5+ {[%clk 0:21:46]} 24. Nc3 {[%clk 0:21:41]}  Qxd5 {[%clk 0:19:47]}
25. Nxd5 {[%clk 0:21:46]}  Kf7 {[%clk 0:18:58]} 26. O-O-O {[%clk 0:20:29]}  Nf6 {[%clk 0:17:06]} 27. Rhe1 {[%clk 0:15:04]}  Rae8 {[%clk 0:13:52]}
28. Ndf4 {[%clk 0:08:36]}  Nb8 {[%clk 0:09:23]} 29. Nc7 {[%clk 0:07:41]}  Rc8 {[%clk 0:08:47]} 30. Rxe7+ {[%clk 0:07:12]}  Kxe7 {[%clk 0:09:10]}
31. Ng6+ {[%clk 0:07:37]}  Kf7 {[%clk 0:09:30]} 32. Nxh8+ {[%clk 0:08:03]}  Rxh8 {[%clk 0:09:50]} 33. Nb5 {[%clk 0:08:23]}  Nbd7 {[%clk 0:08:00]}
34. Nd6+ {[%clk 0:08:12]}  Ke6 {[%clk 0:07:39]} 35. Nxb7 {[%clk 0:07:53]}  Ne5 {[%clk 0:07:18]} 36. Nc5+ {[%clk 0:05:32]}  Kf5 {[%clk 0:07:27]}
37. Rd4 {[%clk 0:04:27]}  Rc8 {[%clk 0:05:55]} 38. Nd3 {[%clk 0:04:32]}  Nfd7 {[%clk 0:04:49]} 39. Nxe5 {[%clk 0:02:24]}  Nxe5 {[%clk 0:05:10]}
40. Rd5 {[%clk 0:01:55]}  Ke6 {[%clk 0:04:54]} 41. Ra5 {[%clk 0:01:35]}  Nc6 {[%clk 0:04:33]} 42. Rc5 {[%clk 0:29:29]}  Kd6 {[%clk 0:32:25]}
43. Rc3 {[%clk 0:29:08]}  Rf8 {[%clk 0:31:33]} 44. Re3 {[%clk 0:28:43]}  Rf7 {[%clk 0:29:47]} 45. f4 {[%clk 0:27:15]}  Kd5 {[%clk 0:27:32]}
46. c3 {[%clk 0:26:45]}  Rb7 {[%clk 0:26:30]} 47. Kc2 {[%clk 0:26:41]}  Rc7 {[%clk 0:26:20]} 48. Kd3 {[%clk 0:26:11]}  Rb7 {[%clk 0:24:49]}
49. b4 {[%clk 0:26:10]}  Kd6 {[%clk 0:24:42]} 50. a4 {[%clk 0:26:07]}  a6 {[%clk 0:24:08]} 51. Kc4 {[%clk 0:26:23]}  Rc7 {[%clk 0:21:52]}
52. Kb3 {[%clk 0:26:04]}  Rb7 {[%clk 0:21:57]} 53. f5 {[%clk 0:25:00]}  Kd5 {[%clk 0:19:57]} 54. Re6 {[%clk 0:24:11]}  Na5+ {[%clk 0:18:32]}
55. Kc2 {[%clk 0:24:00]}  Nc4 {[%clk 0:18:40]} 56. Rxa6 {[%clk 0:24:02]}  Ke4 {[%clk 0:18:00]} 57. Kb3 {[%clk 0:22:44]}  Ne5 {[%clk 0:17:44]}
58. Re6 {[%clk 0:22:05]}  Kxf5 {[%clk 0:17:53]} 59. Re7 {[%clk 0:22:30]}  Rb6 {[%clk 0:16:59]} 60. a5 {[%clk 0:22:53]}  Rd6 {[%clk 0:17:17]}
61. b5 {[%clk 0:22:57]}  Rd5 {[%clk 0:17:08]} 62. Kb4 {[%clk 0:23:01]}  Rd1 {[%clk 0:17:03]} 63. a6 {[%clk 0:23:05]}  Rb1+ {[%clk 0:17:02]}
64. Kc5 {[%clk 0:23:05]}  Rb3 {[%clk 0:17:13]} 65. c4 {[%clk 0:23:15]}  Rc3 {[%clk 0:17:38]} 66. Rxe5 {[%clk 0:23:36]}  Kxe5 {[%clk 0:18:01]}
67. a7 {[%clk 0:24:01]}  Ra3 {[%clk 0:18:25]} 68. b6 {[%clk 0:24:26]}  Ra5+ {[%clk 0:18:25]} 69. Kc6 {[%clk 0:24:49]}  Kd4 {[%clk 0:18:50]}
70. b7 {[%clk 0:25:07]}  Rxa7 {[%clk 0:18:36]} 71. b8=Q {[%clk 0:25:31]}  Ra6+ {[%clk 0:19:27]} 72. Kb5 {[%clk 0:25:56]}  Ra2 {[%clk 0:19:48]}
73. Qf4+ {[%clk 0:26:17]}  Kc3 {[%clk 0:20:12]} 74. Qe3+ {[%clk 0:26:44]}  Kb2 {[%clk 0:20:34]} 75. Kb4 {[%clk 0:27:09]}  Ra1 {[%clk 0:20:55]}
76. Qb3# {[%clk 0:27:31]} 1-0

[Event "2026 European Womens Championship"]
[Site "Batumi, GE"]
[Date "2026.06.04"]
[Round "10"]
[White "Khurtsilava, Inga"]
[Black "Mirzoeva, Elmira"]
[Result "0-1"]
[Board "42"]
[TimeControl "5400+30"]
[WhiteFideId "13600419"]
[BlackFideId "4127951"]
[WhiteElo "2175"]
[BlackElo "2265"]
[WhiteTitle "WGM"]
[BlackTitle "WGM"]
[WhiteClock "0:19:37"]
[BlackClock "0:18:53"]
[Variant "Standard"]

1. Nf3 {[%clk 1:30:46]}  Nf6 {[%clk 1:30:47]} 2. d4 {[%clk 1:31:06]}  b6 {[%clk 1:31:00]} 3. e3 {[%clk 1:31:22]}  Bb7 {[%clk 1:31:13]}
4. Bd3 {[%clk 1:31:48]}  g6 {[%clk 1:31:27]} 5. Nbd2 {[%clk 1:31:51]}  Bg7 {[%clk 1:31:35]} 6. e4 {[%clk 1:31:33]}  d6 {[%clk 1:31:23]}
7. Qe2 {[%clk 1:30:50]}  O-O {[%clk 1:30:54]} 8. O-O {[%clk 1:29:20]}  Nbd7 {[%clk 1:25:15]} 9. Re1 {[%clk 1:26:38]}  e5 {[%clk 1:24:43]}
10. d5 {[%clk 1:20:02]}  Nc5 {[%clk 1:19:34]} 11. b4 {[%clk 1:17:56]}  Nxd3 {[%clk 1:19:15]} 12. Qxd3 {[%clk 1:17:08]}  Nh5 {[%clk 1:14:48]}
13. Nf1 {[%clk 1:08:46]}  f5 {[%clk 1:02:06]} 14. Ng5 {[%clk 1:07:34]}  fxe4 {[%clk 1:00:59]} 15. Nxe4 {[%clk 1:06:49]}  Nf4 {[%clk 1:00:13]}
16. Bxf4 {[%clk 1:06:40]}  exf4 {[%clk 1:00:38]} 17. Rad1 {[%clk 1:06:25]}  f3 {[%clk 0:51:59]} 18. gxf3 {[%clk 1:05:56]}  Qh4 {[%clk 0:49:04]}
19. Nfg3 {[%clk 1:05:01]}  Rf7 {[%clk 0:47:56]} 20. Qc4 {[%clk 0:58:44]}  Qf4 {[%clk 0:41:43]} 21. Re3 {[%clk 0:58:51]}  Be5 {[%clk 0:33:56]}
22. Nd2 {[%clk 0:55:39]}  Qh6 {[%clk 0:30:44]} 23. Ndf1 {[%clk 0:46:19]}  a6 {[%clk 0:27:15]} 24. a4 {[%clk 0:44:41]}  Raf8 {[%clk 0:27:15]}
25. b5 {[%clk 0:44:00]}  a5 {[%clk 0:21:24]} 26. Qe2 {[%clk 0:40:13]}  Qg5 {[%clk 0:19:20]} 27. c4 {[%clk 0:39:06]}  Bc8 {[%clk 0:17:36]}
28. Nd2 {[%clk 0:38:07]}  h5 {[%clk 0:16:54]} 29. Kh1 {[%clk 0:14:16]}  h4 {[%clk 0:16:41]} 30. Rxe5 {[%clk 0:14:36]}  Qxe5 {[%clk 0:11:37]}
31. Qxe5 {[%clk 0:14:58]}  dxe5 {[%clk 0:12:05]} 32. Nge4 {[%clk 0:15:21]}  Rf4 {[%clk 0:08:45]} 33. Kg2 {[%clk 0:12:46]}  Bf5 {[%clk 0:08:25]}
34. Re1 {[%clk 0:13:03]}  Kg7 {[%clk 0:07:42]} 35. Re3 {[%clk 0:11:56]}  h3+ {[%clk 0:07:07]} 36. Kg3 {[%clk 0:10:40]}  g5 {[%clk 0:06:17]}
37. c5 {[%clk 0:06:27]}  g4 {[%clk 0:03:25]} 38. cxb6 {[%clk 0:03:44]}  gxf3 {[%clk 0:01:51]} 39. Nc5 {[%clk 0:01:57]}  Rg4+ {[%clk 0:00:42]}
40. Kxf3 {[%clk 0:02:18]}  cxb6 {[%clk 0:00:54]} 41. Ncb3 {[%clk 0:00:41]}  Bd7+ {[%clk 0:20:47]} 42. Ke2 {[%clk 0:30:00]}  Rxa4 {[%clk 0:20:57]}
43. Rg3+ {[%clk 0:26:25]}  Rg4 {[%clk 0:21:01]} 44. Rxh3 {[%clk 0:26:21]}  Bxb5+ {[%clk 0:20:21]} 45. Ke3 {[%clk 0:23:52]}  a4 {[%clk 0:20:31]}
46. Nc1 {[%clk 0:23:42]}  Rc8 {[%clk 0:20:28]} 47. Ne2 {[%clk 0:18:11]}  a3 {[%clk 0:19:48]} 48. f3 {[%clk 0:18:29]}  a2 {[%clk 0:19:14]}
49. Nb3 {[%clk 0:17:59]}  Rb4 {[%clk 0:19:36]} 50. Rg3+ {[%clk 0:18:21]}  Kf7 {[%clk 0:19:34]} 51. Na1 {[%clk 0:18:31]}  Rb1 {[%clk 0:19:48]}
52. Rg1 {[%clk 0:18:53]}  Bxe2 {[%clk 0:19:37]} 0-1